[Event "*** SCC Grand Prix: Titled Tuesday Blitz"]
[Site "Chess.com"]
[Date "2020.06.09"]
[Round "2"]
[White "AlexOstrovskiy"]
[Black "Fandorine"]
[Result "0-1"]
[WhiteElo "2581"]
[BlackElo "2899"]
[TimeControl "180+1"]
[EndTime "9:19:52 PDT"]
[Termination "Fandorine won by checkmate"]

1. d4 {[%clk 0:03:00.9]} 1... Nf6 {[%clk 0:02:59]} 2. Bf4 {[%clk 0:03:00.5]}
2... d6 {[%clk 0:02:58.8]} 3. Nc3 {[%clk 0:03:00]} 3... Nbd7 {[%clk 0:02:59.2]}
4. Nf3 {[%clk 0:03:00]} 4... c5 {[%clk 0:02:59]} 5. d5 {[%clk 0:02:59.7]} 5...
Qa5 {[%clk 0:02:55.8]} 6. Bd2 {[%clk 0:02:38.7]} 6... g6 {[%clk 0:02:52.3]} 7.
e4 {[%clk 0:02:37.6]} 7... Bg7 {[%clk 0:02:52.2]} 8. a4 {[%clk 0:02:32.2]} 8...
O-O {[%clk 0:02:51.8]} 9. Bc4 {[%clk 0:01:58.2]} 9... a6 {[%clk 0:02:50.6]} 10.
O-O {[%clk 0:01:54.7]} 10... Rb8 {[%clk 0:02:48.8]} 11. Qe2 {[%clk 0:01:49.4]}
11... Qd8 {[%clk 0:02:41.9]} 12. h3 {[%clk 0:01:46.9]} 12... Ne8 {[%clk
0:02:39.1]} 13. Rfe1 {[%clk 0:01:41.8]} 13... Nc7 {[%clk 0:02:37.6]} 14. Rad1
{[%clk 0:01:40.1]} 14... b6 {[%clk 0:02:23.5]} 15. Bf4 {[%clk 0:01:36.1]} 15...
b5 {[%clk 0:01:54.2]} 16. axb5 {[%clk 0:01:37]} 16... Bxc3 {[%clk 0:01:35.3]}
17. bxc3 {[%clk 0:01:36.6]} 17... axb5 {[%clk 0:01:35.7]} 18. Ba2 {[%clk
0:01:31.8]} 18... Ra8 {[%clk 0:01:32.2]} 19. Bb1 {[%clk 0:01:28.9]} 19... f6
{[%clk 0:01:31]} 20. c4 {[%clk 0:01:25]} 20... b4 {[%clk 0:01:25.8]} 21. c3
{[%clk 0:01:20]} 21... bxc3 {[%clk 0:01:26.2]} 22. Rc1 {[%clk 0:01:06.1]} 22...
Ne5 {[%clk 0:01:25.4]} 23. Rxc3 {[%clk 0:01:03]} 23... Ra4 {[%clk 0:01:16.7]}
24. Bh6 {[%clk 0:00:55.9]} 24... Rf7 {[%clk 0:01:12.9]} 25. Nxe5 {[%clk
0:00:50.7]} 25... fxe5 {[%clk 0:01:11]} 26. f4 {[%clk 0:00:48]} 26... exf4
{[%clk 0:00:37]} 27. e5 {[%clk 0:00:48.9]} 27... Bf5 {[%clk 0:00:32.1]} 28. exd6
{[%clk 0:00:28.4]} 28... exd6 {[%clk 0:00:23]} 29. Bxf5 {[%clk 0:00:26.7]} 29...
Rxf5 {[%clk 0:00:23.4]} 30. Rf3 {[%clk 0:00:14.8]} 30... Qf6 {[%clk 0:00:17.6]}
31. Kh1 {[%clk 0:00:14.6]} 31... Ra1 {[%clk 0:00:15.7]} 32. Rxa1 {[%clk
0:00:12.5]} 32... Qxa1+ {[%clk 0:00:16.6]} 33. Kh2 {[%clk 0:00:13.4]} 33... Qf6
{[%clk 0:00:09.1]} 34. Rb3 {[%clk 0:00:13.3]} 34... Qe5 {[%clk 0:00:02.9]} 35.
Rb8+ {[%clk 0:00:11.9]} 35... Kf7 {[%clk 0:00:03.1]} 36. Qf3 {[%clk 0:00:04.3]}
36... Ke7 {[%clk 0:00:02.6]} 37. Rb7 {[%clk 0:00:03.8]} 37... Kd7 {[%clk
0:00:02.5]} 38. Ra7 {[%clk 0:00:03.5]} 38... Rf7 {[%clk 0:00:01.7]} 39. Kh1
{[%clk 0:00:02.7]} 39... Qe1+ {[%clk 0:00:01.8]} 40. Kh2 {[%clk 0:00:03]} 40...
Qe5 {[%clk 0:00:02.5]} 41. Kh1 {[%clk 0:00:03.5]} 41... Qe3 {[%clk 0:00:02.7]}
42. Qg4+ {[%clk 0:00:03.2]} 42... Kd8 {[%clk 0:00:02.5]} 43. Rb7 {[%clk
0:00:03.7]} 43... Qe1+ {[%clk 0:00:02.7]} 44. Kh2 {[%clk 0:00:04.3]} 44... Qe5
{[%clk 0:00:03.1]} 45. Rb8+ {[%clk 0:00:03.7]} 45... Ke7 {[%clk 0:00:03.7]} 46.
Bg5+ {[%clk 0:00:04.3]} 46... Rf6 {[%clk 0:00:03.6]} 47. Bxf6+ {[%clk
0:00:03.9]} 47... Kxf6 {[%clk 0:00:04.5]} 48. Kh1 {[%clk 0:00:03.3]} 48... Qe1+
{[%clk 0:00:04.3]} 49. Kh2 {[%clk 0:00:03.7]} 49... Qe5 {[%clk 0:00:05]} 50. Qf3
{[%clk 0:00:04.1]} 50... Ne8 {[%clk 0:00:04.2]} 51. Rb7 {[%clk 0:00:03.3]} 51...
Ng7 {[%clk 0:00:04.4]} 52. Qg4 {[%clk 0:00:02.1]} 52... Nf5 {[%clk 0:00:03.8]}
53. Qf3 {[%clk 0:00:02]} 53... h5 {[%clk 0:00:03.8]} 54. Rb6 {[%clk 0:00:02]}
54... Kg5 {[%clk 0:00:04.2]} 55. Qf2 {[%clk 0:00:02.1]} 55... Kh6 {[%clk
0:00:03.5]} 56. Kh1 {[%clk 0:00:02.5]} 56... Kg5 {[%clk 0:00:03.8]} 57. Kh2
{[%clk 0:00:03]} 57... Ng3 {[%clk 0:00:04.4]} 58. Qf3 {[%clk 0:00:03]} 58... Kh6
{[%clk 0:00:04.5]} 59. Rb8 {[%clk 0:00:01.8]} 59... Kg5 {[%clk 0:00:04.7]} 60.
h4+ {[%clk 0:00:02]} 60... Kxh4 {[%clk 0:00:04.2]} 61. Rf8 {[%clk 0:00:02.9]}
61... Kg5 {[%clk 0:00:04.6]} 62. Rf7 {[%clk 0:00:03]} 62... Nf5 {[%clk
0:00:04.9]} 63. Rf8 {[%clk 0:00:03.1]} 63... Qe1 {[%clk 0:00:04.9]} 64. Rd8
{[%clk 0:00:02.3]} 64... Qh4+ {[%clk 0:00:05.2]} 65. Kg1 {[%clk 0:00:02.8]}
65... Qe1+ {[%clk 0:00:05.4]} 66. Kh2 {[%clk 0:00:03.3]} 66... Qe5 {[%clk
0:00:06]} 67. Kg1 {[%clk 0:00:03.2]} 67... Nd4 {[%clk 0:00:06.3]} 68. Qf2 {[%clk
0:00:03.5]} 68... Ne2+ {[%clk 0:00:06.1]} 69. Kf1 {[%clk 0:00:01.7]} 69... Ng3+
{[%clk 0:00:05.7]} 70. Kg1 {[%clk 0:00:02.6]} 70... Qa1+ {[%clk 0:00:06.4]} 71.
Kh2 {[%clk 0:00:01.6]} 71... Qh1# {[%clk 0:00:07]} 0-1

[Event "*** SCC Grand Prix: Titled Tuesday Blitz"]
[Site "Chess.com"]
[Date "2020.06.09"]
[Round "2"]
[White "GMKrikor"]
[Black "chenxiaoyuer"]
[Result "0-1"]
[WhiteElo "2719"]
[BlackElo "2382"]
[TimeControl "180+1"]
[EndTime "9:19:56 PDT"]
[Termination "chenxiaoyuer won by resignation"]

1. e4 {[%clk 0:03:00.9]} 1... c5 {[%clk 0:02:59.7]} 2. Nf3 {[%clk 0:02:59.5]}
2... d6 {[%clk 0:02:59.6]} 3. d4 {[%clk 0:02:59.1]} 3... cxd4 {[%clk 0:03:00.5]}
4. Nxd4 {[%clk 0:02:59.7]} 4... Nf6 {[%clk 0:03:00.7]} 5. Nc3 {[%clk 0:02:59.9]}
5... Nc6 {[%clk 0:03:00.6]} 6. Bg5 {[%clk 0:02:59.7]} 6... e6 {[%clk 0:03:00.1]}
7. Qd2 {[%clk 0:02:59.8]} 7... Qb6 {[%clk 0:02:59.7]} 8. Bxf6 {[%clk 0:02:51]}
8... gxf6 {[%clk 0:02:54]} 9. Nb3 {[%clk 0:02:50.3]} 9... Bd7 {[%clk 0:02:54]}
10. O-O-O {[%clk 0:02:49.6]} 10... O-O-O {[%clk 0:02:54]} 11. f4 {[%clk
0:02:47]} 11... Kb8 {[%clk 0:02:52.9]} 12. Be2 {[%clk 0:02:47.1]} 12... h5
{[%clk 0:02:52.7]} 13. Rhf1 {[%clk 0:02:46.8]} 13... Na5 {[%clk 0:02:48.1]} 14.
Rf3 {[%clk 0:02:38.8]} 14... Nxb3+ {[%clk 0:02:46.8]} 15. axb3 {[%clk
0:02:38.7]} 15... Bc6 {[%clk 0:02:45.9]} 16. Rd3 {[%clk 0:02:31.8]} 16... Be7
{[%clk 0:02:27.6]} 17. Bf3 {[%clk 0:02:32]} 17... Qc5 {[%clk 0:02:19.8]} 18. Kb1
{[%clk 0:02:32]} 18... a6 {[%clk 0:02:14.1]} 19. f5 {[%clk 0:02:17]} 19... Qe5
{[%clk 0:02:10.4]} 20. h3 {[%clk 0:02:12.2]} 20... Rc8 {[%clk 0:01:46]} 21. Re1
{[%clk 0:02:07.7]} 21... Bb5 {[%clk 0:01:30.8]} 22. Rd4 {[%clk 0:01:44.9]} 22...
Qc5 {[%clk 0:01:13.9]} 23. b4 {[%clk 0:01:25.3]} 23... Qb6 {[%clk 0:01:12.8]}
24. Nxb5 {[%clk 0:01:18]} 24... Qxb5 {[%clk 0:01:04.9]} 25. c3 {[%clk
0:01:18.6]} 25... Qe5 {[%clk 0:01:00.2]} 26. Rd3 {[%clk 0:01:10.5]} 26... Rc6
{[%clk 0:00:58.1]} 27. Qf2 {[%clk 0:01:04.8]} 27... h4 {[%clk 0:00:52.7]} 28.
Qd4 {[%clk 0:01:04.5]} 28... Qxd4 {[%clk 0:00:44.7]} 29. Rxd4 {[%clk 0:01:03.4]}
29... e5 {[%clk 0:00:36.4]} 30. Rd5 {[%clk 0:01:02.2]} 30... Rg8 {[%clk
0:00:26.1]} 31. Kc2 {[%clk 0:01:00.4]} 31... Rc7 {[%clk 0:00:23.5]} 32. b5
{[%clk 0:00:59]} 32... Rc5 {[%clk 0:00:19.7]} 33. Red1 {[%clk 0:00:53.2]} 33...
Rxd5 {[%clk 0:00:16.2]} 34. Rxd5 {[%clk 0:00:52.5]} 34... axb5 {[%clk
0:00:15.1]} 35. Rxb5 {[%clk 0:00:52.4]} 35... Kc7 {[%clk 0:00:15]} 36. Rd5
{[%clk 0:00:47.9]} 36... Bf8 {[%clk 0:00:12.3]} 37. Ra5 {[%clk 0:00:37.5]} 37...
Bh6 {[%clk 0:00:11]} 38. b4 {[%clk 0:00:37.1]} 38... Kb6 {[%clk 0:00:09.2]} 39.
Ra1 {[%clk 0:00:36.1]} 39... Bf4 {[%clk 0:00:08.4]} 40. Kd3 {[%clk 0:00:34.1]}
40... Kc6 {[%clk 0:00:08.2]} 41. Kc4 {[%clk 0:00:33.7]} 41... Kc7 {[%clk
0:00:07.4]} 42. Kd5 {[%clk 0:00:31.7]} 42... Rf8 {[%clk 0:00:06.3]} 43. Bh5
{[%clk 0:00:25.6]} 43... Bd2 {[%clk 0:00:05.7]} 44. Ra2 {[%clk 0:00:24.6]} 44...
Bf4 {[%clk 0:00:04.1]} 45. Ra3 {[%clk 0:00:17.9]} 45... Bg3 {[%clk 0:00:03.6]}
46. Kc4 {[%clk 0:00:14.8]} 46... Bf4 {[%clk 0:00:03.8]} 47. Kd3 {[%clk 0:00:15]}
47... Bg3 {[%clk 0:00:03.9]} 48. Ra5 {[%clk 0:00:15.1]} 48... Bf4 {[%clk
0:00:04.1]} 49. Bg4 {[%clk 0:00:15.1]} 49... Bg3 {[%clk 0:00:04.1]} 50. Ra2
{[%clk 0:00:14.1]} 50... Bf4 {[%clk 0:00:04.1]} 51. Kc4 {[%clk 0:00:14]} 51...
Bg3 {[%clk 0:00:04.2]} 52. Kb3 {[%clk 0:00:14.6]} 52... Bf4 {[%clk 0:00:04.1]}
53. c4 {[%clk 0:00:15.2]} 53... Bg3 {[%clk 0:00:03.3]} 54. Ra1 {[%clk
0:00:15.2]} 54... Bf4 {[%clk 0:00:03.2]} 55. Ra7 {[%clk 0:00:13.6]} 55... Bg3
{[%clk 0:00:02.9]} 56. Kc3 {[%clk 0:00:11.8]} 56... Kb6 {[%clk 0:00:02.7]} 57.
Ra2 {[%clk 0:00:11.6]} 57... Bf4 {[%clk 0:00:02.3]} 58. Kd3 {[%clk 0:00:12.1]}
58... Bg3 {[%clk 0:00:02.4]} 59. Rc2 {[%clk 0:00:10.6]} 59... Bf4 {[%clk
0:00:02.4]} 60. Ra2 {[%clk 0:00:10.4]} 60... Rc8 {[%clk 0:00:02.5]} 61. Bh5
{[%clk 0:00:10]} 61... Rf8 {[%clk 0:00:02.3]} 62. Bf3 {[%clk 0:00:10]} 62... Kc7
{[%clk 0:00:02.6]} 63. Bd1 {[%clk 0:00:09.7]} 63... Bg3 {[%clk 0:00:02.7]} 64.
Bb3 {[%clk 0:00:09.7]} 64... Bf4 {[%clk 0:00:03.1]} 65. c5 {[%clk 0:00:10.2]}
65... dxc5 {[%clk 0:00:03.1]} 66. bxc5 {[%clk 0:00:11.1]} 66... Kc6 {[%clk
0:00:03.6]} 67. Rc2 {[%clk 0:00:10.3]} 67... Rd8+ {[%clk 0:00:03.5]} 68. Bd5+
{[%clk 0:00:11.2]} 68... Kc7 {[%clk 0:00:03.4]} 69. Rb2 {[%clk 0:00:11.5]} 69...
Rd7 {[%clk 0:00:03.2]} 70. Rxb7+ {[%clk 0:00:11.3]} 70... Kd8 {[%clk 0:00:03.4]}
71. Rb6 {[%clk 0:00:08.8]} 71... Rc7 {[%clk 0:00:03.2]} 72. Kc4 {[%clk
0:00:08.1]} 72... Be3 {[%clk 0:00:02.9]} 73. c6 {[%clk 0:00:07.5]} 73... Bxb6
{[%clk 0:00:02.7]} 74. Kb5 {[%clk 0:00:07.1]} 74... Be3 {[%clk 0:00:03]} 75.
Bxf7 {[%clk 0:00:07.3]} 75... Bg5 {[%clk 0:00:03.2]} 76. Kc5 {[%clk 0:00:07]}
76... Rxf7 {[%clk 0:00:03.1]} 0-1

[Event "*** SCC Grand Prix: Titled Tuesday Blitz"]
[Site "Chess.com"]
[Date "2020.06.09"]
[Round "2"]
[White "PawnEatingZombie"]
[Black "KaterinaMiroshnik"]
[Result "0-1"]
[WhiteElo "2117"]
[BlackElo "2416"]
[TimeControl "180+1"]
[EndTime "9:19:57 PDT"]
[Termination "KaterinaMiroshnik won on time"]

1. d4 {[%clk 0:03:00.9]} 1... e6 {[%clk 0:02:59.1]} 2. c4 {[%clk 0:03:00.8]}
2... d5 {[%clk 0:02:59.1]} 3. Nc3 {[%clk 0:03:00.3]} 3... Nf6 {[%clk 0:02:58.9]}
4. cxd5 {[%clk 0:03:00.3]} 4... exd5 {[%clk 0:02:59.1]} 5. Bg5 {[%clk 0:03:00]}
5... Be7 {[%clk 0:02:59]} 6. e3 {[%clk 0:02:59.7]} 6... O-O {[%clk 0:02:58.7]}
7. Bd3 {[%clk 0:02:59.7]} 7... h6 {[%clk 0:02:58.9]} 8. Bh4 {[%clk 0:02:58.9]}
8... b6 {[%clk 0:02:59.4]} 9. Nf3 {[%clk 0:02:56.3]} 9... Bb7 {[%clk 0:02:59.7]}
10. O-O {[%clk 0:02:55.8]} 10... c5 {[%clk 0:02:59.9]} 11. Ne5 {[%clk
0:02:55.7]} 11... Nc6 {[%clk 0:02:54.1]} 12. Ba6 {[%clk 0:02:50.3]} 12... Bxa6
{[%clk 0:02:46.5]} 13. Nxc6 {[%clk 0:02:48.4]} 13... Qc7 {[%clk 0:02:46.2]} 14.
Nxe7+ {[%clk 0:02:48.1]} 14... Qxe7 {[%clk 0:02:47.1]} 15. Nxd5 {[%clk
0:02:37.1]} 15... Qe4 {[%clk 0:02:46.1]} 16. Nxf6+ {[%clk 0:02:24.6]} 16... gxf6
{[%clk 0:02:44.8]} 17. Bxf6 {[%clk 0:02:07.5]} 17... Bxf1 {[%clk 0:02:43]} 18.
Qxf1 {[%clk 0:01:52.1]} 18... Qg6 {[%clk 0:02:39.4]} 19. Be5 {[%clk 0:01:44.2]}
19... cxd4 {[%clk 0:02:34.1]} 20. Bxd4 {[%clk 0:01:42.6]} 20... Rac8 {[%clk
0:02:34.3]} 21. Rc1 {[%clk 0:01:38.7]} 21... Qe6 {[%clk 0:02:31.6]} 22. a3
{[%clk 0:01:28.8]} 22... Rxc1 {[%clk 0:02:27.1]} 23. Qxc1 {[%clk 0:01:28.2]}
23... Rc8 {[%clk 0:02:28]} 24. Qd1 {[%clk 0:01:11.2]} 24... f6 {[%clk
0:02:20.2]} 25. h3 {[%clk 0:01:08.6]} 25... Qf5 {[%clk 0:02:13.6]} 26. Qg4+
{[%clk 0:00:49.7]} 26... Qxg4 {[%clk 0:02:12.5]} 27. hxg4 {[%clk 0:00:50.6]}
27... Kf7 {[%clk 0:02:13.4]} 28. Kh2 {[%clk 0:00:49.8]} 28... Rc2 {[%clk
0:02:13]} 29. Kg3 {[%clk 0:00:49]} 29... Kg6 {[%clk 0:02:11.7]} 30. Kf3 {[%clk
0:00:46.7]} 30... Rc6 {[%clk 0:02:06.1]} 31. Kg3 {[%clk 0:00:46.4]} 31... a5
{[%clk 0:02:02.1]} 32. Kf3 {[%clk 0:00:45.9]} 32... b5 {[%clk 0:02:01.8]} 33.
Kg3 {[%clk 0:00:45.4]} 33... b4 {[%clk 0:01:59.2]} 34. axb4 {[%clk 0:00:45.2]}
34... axb4 {[%clk 0:02:00.1]} 35. Kf3 {[%clk 0:00:45.3]} 35... Rc1 {[%clk
0:01:59.1]} 36. Kg3 {[%clk 0:00:42.9]} 36... Rc2 {[%clk 0:01:59.7]} 37. Kf3
{[%clk 0:00:42.2]} 37... b3 {[%clk 0:02:00]} 38. Kg3 {[%clk 0:00:41.1]} 38...
Kf7 {[%clk 0:01:55.1]} 39. f4 {[%clk 0:00:36.5]} 39... Ke6 {[%clk 0:01:54.3]}
40. Kf3 {[%clk 0:00:36.9]} 40... Kf7 {[%clk 0:01:47.9]} 41. g3 {[%clk
0:00:36.3]} 41... Rc1 {[%clk 0:01:47.6]} 42. Ke4 {[%clk 0:00:33.8]} 42... Rg1
{[%clk 0:01:47.6]} 43. Kf3 {[%clk 0:00:33.5]} 43... Kg6 {[%clk 0:01:45.7]} 44.
Kf2 {[%clk 0:00:29.7]} 44... Rd1 {[%clk 0:01:39.7]} 45. Kf3 {[%clk 0:00:29.3]}
45... Rd3 {[%clk 0:01:36.5]} 46. Ke4 {[%clk 0:00:28.7]} 46... Rd2 {[%clk
0:01:34.1]} 47. Kf3 {[%clk 0:00:28.7]} 47... Rc2 {[%clk 0:01:33.9]} 48. Ke4
{[%clk 0:00:26.3]} 48... Rc4 {[%clk 0:01:30.3]} 49. Kf3 {[%clk 0:00:26.1]} 49...
Kf7 {[%clk 0:01:29.9]} 50. Ke4 {[%clk 0:00:26.4]} 50... Ke6 {[%clk 0:01:30.1]}
51. Kf3 {[%clk 0:00:26.2]} 51... Rc2 {[%clk 0:01:29.9]} 52. Ke4 {[%clk
0:00:26.1]} 52... Rd2 {[%clk 0:01:30]} 53. Kf3 {[%clk 0:00:25.2]} 53... Rd1
{[%clk 0:01:29.9]} 54. Ke4 {[%clk 0:00:24.5]} 54... Re1 {[%clk 0:01:30.2]} 55.
Kf3 {[%clk 0:00:24.1]} 55... f5 {[%clk 0:01:30.2]} 56. gxf5+ {[%clk 0:00:23.5]}
56... Kxf5 {[%clk 0:01:31.1]} 57. g4+ {[%clk 0:00:24.1]} 57... Kg6 {[%clk
0:01:31.2]} 58. Kg3 {[%clk 0:00:23.8]} 58... Rg1+ {[%clk 0:01:30.7]} 59. Kh4
{[%clk 0:00:23.7]} 59... Rd1 {[%clk 0:01:28.6]} 60. Kg3 {[%clk 0:00:23.1]} 60...
h5 {[%clk 0:01:28]} 61. gxh5+ {[%clk 0:00:22.4]} 61... Kxh5 {[%clk 0:01:28.9]}
62. Kf3 {[%clk 0:00:22.8]} 62... Kg6 {[%clk 0:01:28.6]} 63. Ke4 {[%clk
0:00:23.2]} 63... Rd2 {[%clk 0:01:27.6]} 64. Ke5 {[%clk 0:00:22.3]} 64... Re2
{[%clk 0:01:26.8]} 65. e4 {[%clk 0:00:22.1]} 65... Re1 {[%clk 0:01:24.2]} 66.
f5+ {[%clk 0:00:22]} 66... Kf7 {[%clk 0:01:24.5]} 67. Kd5 {[%clk 0:00:21.7]}
67... Rf1 {[%clk 0:01:24.7]} 68. f6 {[%clk 0:00:20.1]} 68... Rd1 {[%clk
0:01:22.4]} 69. e5 {[%clk 0:00:19.1]} 69... Re1 {[%clk 0:01:22.7]} 70. Kc4
{[%clk 0:00:18.1]} 70... Re4 {[%clk 0:01:17.1]} 71. Kd3 {[%clk 0:00:16]} 71...
Rg4 {[%clk 0:01:15.6]} 72. Bc3 {[%clk 0:00:16]} 72... Ke6 {[%clk 0:01:13.5]} 73.
Bd4 {[%clk 0:00:15]} 73... Rg3+ {[%clk 0:01:10.7]} 74. Kc4 {[%clk 0:00:14.4]}
74... Rg4 {[%clk 0:01:08.6]} 75. Kd3 {[%clk 0:00:14.3]} 75... Kd5 {[%clk
0:01:05.2]} 76. Bc3 {[%clk 0:00:13.5]} 76... Rg3+ {[%clk 0:01:05.2]} 77. Kd2
{[%clk 0:00:13]} 77... Rf3 {[%clk 0:01:01.9]} 78. Ke2 {[%clk 0:00:04.7]} 78...
Rf5 {[%clk 0:00:59.2]} 79. Kd3 {[%clk 0:00:03.9]} 79... Rh5 {[%clk 0:00:56.5]}
80. Kd2 {[%clk 0:00:02.2]} 80... Rh3 {[%clk 0:00:54.7]} 81. Ke2 {[%clk
0:00:01.6]} 81... Ke6 {[%clk 0:00:53.4]} 82. Kd2 {[%clk 0:00:01.3]} 82... Rg3
{[%clk 0:00:53.4]} 0-1

[Event "*** SCC Grand Prix: Titled Tuesday Blitz"]
[Site "Chess.com"]
[Date "2020.06.09"]
[Round "2"]
[White "hepyeke"]
[Black "DrBergerBerger"]
[Result "1/2-1/2"]
[WhiteElo "2206"]
[BlackElo "2431"]
[TimeControl "180+1"]
[EndTime "9:19:58 PDT"]
[Termination "Game drawn by repetition"]

1. e4 {[%clk 0:03:00.9]} 1... e6 {[%clk 0:02:59.4]} 2. d3 {[%clk 0:03:00.4]}
2... d5 {[%clk 0:02:59.2]} 3. Nd2 {[%clk 0:03:00.9]} 3... Nc6 {[%clk 0:02:58]}
4. g3 {[%clk 0:02:59.7]} 4... Nf6 {[%clk 0:02:55.3]} 5. Bg2 {[%clk 0:02:59.4]}
5... dxe4 {[%clk 0:02:55.5]} 6. dxe4 {[%clk 0:02:59.4]} 6... Bc5 {[%clk
0:02:55.1]} 7. Ngf3 {[%clk 0:02:57.5]} 7... O-O {[%clk 0:02:54]} 8. O-O {[%clk
0:02:57.5]} 8... e5 {[%clk 0:02:53.4]} 9. c3 {[%clk 0:02:56.7]} 9... a5 {[%clk
0:02:52.6]} 10. h3 {[%clk 0:02:54.1]} 10... b6 {[%clk 0:02:50.7]} 11. Re1 {[%clk
0:02:52.1]} 11... Qe7 {[%clk 0:02:36.4]} 12. a4 {[%clk 0:02:50.9]} 12... Rd8
{[%clk 0:02:32.3]} 13. Qc2 {[%clk 0:02:51]} 13... Nh5 {[%clk 0:01:49.5]} 14. Nb3
{[%clk 0:02:34.6]} 14... Bd6 {[%clk 0:01:32.6]} 15. Be3 {[%clk 0:02:29.1]} 15...
Ba6 {[%clk 0:01:31.4]} 16. Nbd2 {[%clk 0:02:24.8]} 16... Rd7 {[%clk 0:01:24.3]}
17. Bf1 {[%clk 0:02:23.1]} 17... Bxf1 {[%clk 0:01:20.4]} 18. Kxf1 {[%clk
0:02:23.4]} 18... Rad8 {[%clk 0:01:17.7]} 19. Kg2 {[%clk 0:02:20.7]} 19... Bc5
{[%clk 0:01:07.4]} 20. Nc4 {[%clk 0:02:19.2]} 20... Nf6 {[%clk 0:00:49.3]} 21.
Bg5 {[%clk 0:02:08.3]} 21... h6 {[%clk 0:00:48]} 22. Bxf6 {[%clk 0:02:07.8]}
22... Qxf6 {[%clk 0:00:48.9]} 23. Ne3 {[%clk 0:02:02.9]} 23... Bxe3 {[%clk
0:00:35.1]} 24. Rxe3 {[%clk 0:02:03.8]} 24... g6 {[%clk 0:00:34.9]} 25. Ree1
{[%clk 0:01:36.1]} 25... Qd6 {[%clk 0:00:32.5]} 26. Re2 {[%clk 0:01:32.5]} 26...
Qc5 {[%clk 0:00:30.4]} 27. Qb3 {[%clk 0:01:22.8]} 27... Kg7 {[%clk 0:00:27.8]}
28. Qb5 {[%clk 0:01:21.1]} 28... Qxb5 {[%clk 0:00:24.7]} 29. axb5 {[%clk
0:01:22]} 29... Na7 {[%clk 0:00:25.2]} 30. Nxe5 {[%clk 0:01:21.7]} 30... Rd2
{[%clk 0:00:20.9]} 31. Rxd2 {[%clk 0:01:18.8]} 31... Rxd2 {[%clk 0:00:21.8]} 32.
Nc4 {[%clk 0:01:17]} 32... Rc2 {[%clk 0:00:20.5]} 33. Rd1 {[%clk 0:01:07.3]}
33... Nxb5 {[%clk 0:00:20.2]} 34. Rd7 {[%clk 0:01:06.8]} 34... a4 {[%clk
0:00:20.1]} 35. e5 {[%clk 0:01:04.6]} 35... Kf8 {[%clk 0:00:19.2]} 36. Rd2
{[%clk 0:00:21.2]} 36... Rxd2 {[%clk 0:00:16.9]} 37. Nxd2 {[%clk 0:00:22.1]}
37... a3 {[%clk 0:00:16]} 38. bxa3 {[%clk 0:00:22.2]} 38... Nxc3 {[%clk
0:00:14.4]} 39. Kf3 {[%clk 0:00:20.5]} 39... Ke7 {[%clk 0:00:13.8]} 40. Ke3
{[%clk 0:00:19.8]} 40... Ke6 {[%clk 0:00:12.7]} 41. f4 {[%clk 0:00:19.9]} 41...
Kd5 {[%clk 0:00:12]} 42. g4 {[%clk 0:00:19.2]} 42... c5 {[%clk 0:00:08.5]} 43.
h4 {[%clk 0:00:18.4]} 43... Nb5 {[%clk 0:00:07.7]} 44. a4 {[%clk 0:00:17.7]}
44... Na3 {[%clk 0:00:08.3]} 45. h5 {[%clk 0:00:16.2]} 45... gxh5 {[%clk
0:00:07.7]} 46. gxh5 {[%clk 0:00:14.9]} 46... Nc4+ {[%clk 0:00:06.4]} 47. Nxc4
{[%clk 0:00:14.4]} 47... Kxc4 {[%clk 0:00:07.3]} 48. Ke4 {[%clk 0:00:13.7]}
48... Kb3 {[%clk 0:00:05.7]} 49. f5 {[%clk 0:00:14.2]} 49... c4 {[%clk
0:00:06.1]} 50. e6 {[%clk 0:00:14.4]} 50... fxe6 {[%clk 0:00:06.8]} 51. fxe6
{[%clk 0:00:13.9]} 51... c3 {[%clk 0:00:07.7]} 52. e7 {[%clk 0:00:14.4]} 52...
c2 {[%clk 0:00:08.2]} 53. e8=Q {[%clk 0:00:14.4]} 53... c1=Q {[%clk 0:00:08.6]}
54. Qb5+ {[%clk 0:00:15]} 54... Ka3 {[%clk 0:00:08.5]} 55. Qxb6 {[%clk
0:00:14.4]} 55... Qh1+ {[%clk 0:00:07.7]} 56. Kf4 {[%clk 0:00:11.8]} 56... Qxh5
{[%clk 0:00:06.7]} 57. a5 {[%clk 0:00:11.7]} 57... Qg5+ {[%clk 0:00:05.6]} 58.
Kf3 {[%clk 0:00:11]} 58... Qf5+ {[%clk 0:00:05.6]} 59. Kg3 {[%clk 0:00:10.6]}
59... Qg5+ {[%clk 0:00:05.7]} 60. Kf3 {[%clk 0:00:09]} 60... Qf5+ {[%clk
0:00:06]} 61. Ke3 {[%clk 0:00:08.9]} 61... Qe5+ {[%clk 0:00:05.8]} 62. Kd3
{[%clk 0:00:08.9]} 62... Qg3+ {[%clk 0:00:04.1]} 63. Kc4 {[%clk 0:00:08.8]}
63... Qf4+ {[%clk 0:00:03.2]} 64. Kb5 {[%clk 0:00:09]} 64... Qb4+ {[%clk
0:00:02.4]} 65. Kc6 {[%clk 0:00:08.8]} 65... Qe4+ {[%clk 0:00:01.1]} 66. Kc7
{[%clk 0:00:07.5]} 66... Qe7+ {[%clk 0:00:01.7]} 67. Kc6 {[%clk 0:00:07]} 67...
Qe6+ {[%clk 0:00:01.9]} 68. Kc5 {[%clk 0:00:06.9]} 68... Qe5+ {[%clk 0:00:02]}
69. Kc6 {[%clk 0:00:06.6]} 69... Qe6+ {[%clk 0:00:02.3]} 70. Kc5 {[%clk
0:00:06.2]} 70... Qe5+ {[%clk 0:00:02.9]} 71. Kc6 {[%clk 0:00:06.6]} 71... Qe6+
{[%clk 0:00:03.4]} 1/2-1/2